Cogmind - Beta 12 @@@ ROGUE MODE // 2023.04.22 @ 11:16:08 Player: maxwell Result: Self-destructed Performance ------------- Evolutions (7) 3500 Regions Visited (31) 6200 Robots Destroyed (366) 1830 Value Destroyed (15340) 15340 Prototype IDs (41) 820 Alien Tech Used (3) 600 Bonus (2870) 2870 TOTAL SCORE: 31160 Bonus ------- High Alert Combat Kills 1287 Follower Combat Kills 998 Met Data Miner 300 Met Imprinter 300 Was Imprinted 300 Met Zhirov 300 Met Warlord at Base 500 MAIN.C Attacked Warlord 500 Friendly Fire -1615 Cogmind --------- Core Integrity 684/1300 Matter 300/300 Energy 124/325 System Corruption 44% Temperature Warm (167) Movement Treading (397) Ox3 Location -3/Armory Parts ------- > --- POWER (2) -------- Antimatter Reactor > --- PROPULSION (5) --- Armored Medium Treads Advanced Medium Treads > --- UTILITY (12) ----- Advanced Heat Sink Advanced Coolant Injector Cargo Storage Unit Machine Analyzer Spectral Analyzer Advanced Signal Interpreter Advanced Launcher Guidance Computer Experimental Utility Shielding Advanced Thermal Shield > --- WEAPON (3) ------- Enhanced Nova Cannon Enhanced Nova Cannon Enhanced Nova Cannon > --- INVENTORY (30) --- Fusion Compressor Medium Treads Compact Wheel Compact Wheel Huge Storage Unit Energy Well (350) Experimental Matter Compressor (500) Advanced Trap Scanner Advanced Cloaking Device Dynamic Insulation System High-powered Tractor Beam Dimensional Node Initializer Heavy Disruptor Cannon Enhanced Nova Cannon Enhanced Nova Cannon Hypervelocity Railgun Hypervelocity Railgun Hypervelocity Railgun Peak State ------------ > --- POWER ------------ Antimatter Reactor Micro Antimatter Reactor > --- PROPULSION ------- Armored Medium Treads Armored Medium Treads Advanced Medium Treads Armored Heavy Treads > --- UTILITY ---------- Advanced Cooling System Advanced Coolant Injector Cargo Storage Unit Machine Analyzer Spectral Analyzer Advanced Sensor Array Advanced Signal Interpreter Advanced Launcher Guidance Computer Transmission Jammer Advanced Cloaking Device System Mapper > --- WEAPON ----------- Enhanced Nova Cannon Enhanced Nova Cannon Enhanced Nova Cannon > --- INVENTORY -------- Fusion Compressor Armored Medium Treads Advanced Medium Treads Compact Wheel Compact Wheel Advanced Heat Sink Huge Storage Unit Energy Well Experimental Matter Compressor Advanced Trap Scanner Advanced Cloaking Device Experimental Utility Shielding Advanced Thermal Shield Dynamic Insulation System High-powered Tractor Beam Dimensional Node Initializer Heavy Disruptor Cannon Enhanced Nova Cannon Enhanced Nova Cannon Hypervelocity Railgun Hypervelocity Railgun Hypervelocity Railgun Hypervelocity Railgun Hypervelocity Railgun Hypervelocity Railgun Hypervelocity Railgun Hypervelocity Railgun [Rating: 162] Favorites ----------- Power Light Antimatter Reactor Engine Light Ion Engine Power Core Enhanced Nuclear Core Reactor Light Antimatter Reactor Propulsion Light Treads Treads Light Treads Leg Aluminum Leg Wheel Armored Huge Wheel Utility Advanced Signal Interpreter Device Improved Sensor Array Storage Cargo Storage Unit Processor Advanced Signal Interpreter Hackware System Mapper Protection Hardened Light Armor Plating Weapon Heavy Assault Rifle Energy Gun Phase Gun Energy Cannon Advanced Plasma Cannon Ballistic Gun Heavy Assault Rifle Ballistic Cannon Hardcell Cannon Launcher Advanced EMP Blaster Impact Weapon Powered Hammer Slashing Weapon Scythe Piercing Weapon CR-A16's Pointy Stick Build | -11 -10 -10 -9 -9 -9 -8 -8 -7 -7 -7 -7 -7 -7 -6 -6 -6 -6 -6 -5 -5 -5 -5 -5 -4 -4 -4 -4 -4 -3 -3 -3 ------- Run | Jun Mat Min Mat Min Exi Min Mat Fac Was Fac Low Low Dat Pro Fac Low Low Zio Pro Fac Upp Upp War Pro Fac Upp Upp Zhi Pro Res Arm Slots Evolved 14 | . . . 2 . . . 2 2 . . . . . . 2 . . . . 2 . . . . 2 . . . . 2 . Power 1 | . . . . . . . . . . . . . . . . . . . . 1 . . . . . . . . . . . Propulsion 3 | . . . . . . . 2 . . . . . . . . . . . . . . . . . . . . . . 1 . Utility 10 | . . . 2 . . . . 2 . . . . . . 2 . . . . 1 . . . . 2 . . . . 1 . Weapon . | . . . . . . . . . . . . . . . . . . . . . . . . . . . . . . . . Parts Attached 424 | . 6 3 25 1 2 10 9 15 8 46 8 2 3 3 28 1 3 16 8 3 26 2 8 10 52 9 3 9 12 54 39 Power 32 | . . . 3 . . 1 . 2 . 2 . . . . . . . 3 . 1 1 . 1 . 4 1 . 1 1 6 5 Engine 9 | . . . 3 . . 1 . 2 . 1 . . . . . . . 1 . . . . . . . . . . . 1 . Core 5 | . . . . . . . . . . . . . . . . . . 2 . 1 1 . . . . . . . . . 1 Reactor 18 | . . . . . . . . . . 1 . . . . . . . . . . . . 1 . 4 1 . 1 1 5 4 Propulsion 72 | . 2 . 4 . . 2 4 . 3 9 1 . . . 3 . . 2 1 . . . . 2 15 2 . . 2 12 8 Treads 40 | . 2 . 4 . . 2 2 . 1 4 . . . . 1 . . 2 1 . . . . . 5 2 . . 2 4 8 Leg 2 | . . . . . . . . . . . . . . . . . . . . . . . . . 2 . . . . . . Wheel 30 | . . . . . . . 2 . 2 5 1 . . . 2 . . . . . . . . 2 8 . . . . 8 . Hover . | . . . . . . . . . . . . . . . . . . . . . . . . . . . . . . . . Flight . | . . . . . . . . . . . . . . . . . . . . . . . . . . . . . . . . Utility 182 | . 2 1 8 1 . 3 4 5 3 14 3 1 . 1 19 . 3 6 3 1 17 2 5 3 24 6 2 5 2 22 16 Device 104 | . . . 3 1 . 2 1 2 2 7 2 1 . . 12 . 2 1 3 1 8 1 4 1 15 3 2 3 1 15 11 Storage 18 | . 1 . 1 . . . . . 1 1 . . . . 1 . 1 4 . . 2 . 1 . 3 . . . . 1 1 Processor 15 | . . . . . . . 1 3 . . . . . 1 3 . . . . . . 1 . 1 2 . . . . 2 1 Hackware 8 | . . . . . . . . . . 4 . . . . 1 . . . . . . . . . 3 . . . . . . Protection 37 | . 1 1 4 . . 1 2 . . 2 1 . . . 2 . . 1 . . 7 . . 1 1 3 . 2 1 4 3 Artifact . | . . . . . . . . . . . . . . . . . . . . . . . . . . . . . . . . Weapon 138 | . 2 2 10 . 2 4 1 8 2 21 4 1 3 2 6 1 . 5 4 1 8 . 2 5 9 . 1 3 7 14 10 Energy Gun 22 | . . . . . . . . . . 1 . 1 1 . . . . . 2 . 1 . . . 1 . . 2 5 7 1 Energy Cannon 34 | . . . . . . . . . . 6 . . 1 1 3 . . 2 1 1 3 . 2 3 4 . . . . . 7 Ballistic Gun 29 | . 1 2 7 . 2 3 1 6 1 4 . . . 1 1 . . . . . . . . . . . . . . . . Ballistic Cannon 14 | . . . . . . . . . . 3 2 . . . . . . . . . . . . . 3 . 1 1 . 4 . Launcher 25 | . 1 . 2 . . 1 . 2 1 3 1 . . . . 1 . 1 1 . 3 . . 1 . . . . 2 3 2 Special Weapon . | . . . . . . . . . . . . . . . . . . . . . . . . . . . . . . . . Impact Weapon 1 | . . . . . . . . . . . . . . . . . . . . . 1 . . . . . . . . . . Slashing Weapon 10 | . . . 1 . . . . . . 4 1 . 1 . 2 . . 1 . . . . . . . . . . . . . Piercing Weapon 3 | . . . . . . . . . . . . . . . . . . 1 . . . . . 1 1 . . . . . . Special Melee Weapon . | . . . . . . . . . . . . . . . . . . . . . . . . . . . . . . . . Unidentified Prototypes 23 | . . . 2 . . . . 1 . 2 1 . . . 2 . . 1 . . 2 . 4 1 2 . . 3 . 2 . Corrupted Parts 4 | . . . . . . . . . . . . . . . . . . 1 1 . . . . . . . . . 2 . . System Corruption 12 | . . . . . . . . . . . . . . . . . . 3 1 . . . . . . . . . 8 . . Parts Lost 103 | . 1 2 5 . . 7 2 . . 8 . 1 . 1 4 . . . . . 3 1 2 2 18 1 . . 1 19 25 Power 16 | . . . 1 . . 1 . . . . . . . . . . . . . . 1 . . . 3 . . . . 5 5 Propulsion 31 | . 1 . 2 . . 2 . . . 2 . . . . 1 . . . . . . . . 2 8 1 . . . 4 8 Utility 33 | . . 1 2 . . 2 1 . . 4 . 1 . 1 1 . . . . . 2 . 1 . 2 . . . 1 6 8 Weapon 23 | . . 1 . . . 2 1 . . 2 . . . . 2 . . . . . . 1 1 . 5 . . . . 4 4 Highest Loss Streak 6 | . 1 2 2 . . 6 1 . . 2 . 1 . 1 2 . . . . . 2 1 2 1 4 1 . . 1 5 6 To Critical Strikes 1 | . . . . . . . . . . . . . . . . . . . . . . . . . 1 . . . . . . Average Slot Usage (%) 88 | . 99 100 98 100 79 99 98 99 98 89 84 85 69 84 85 87 86 86 87 88 87 83 82 81 80 86 85 69 82 82 83 Engine 4 | . 14 14 11 11 11 10 9 7 7 6 . . . . . . . . 6 5 5 5 2 . . . . . . . . Reactor 3 | . . . . . . . . . . . 7 7 7 7 6 6 6 . . . . . 2 5 7 9 10 9 10 8 5 Treads 12 | . 10 28 22 22 22 21 18 15 3 9 7 7 7 7 5 . . 6 12 11 11 11 11 7 5 11 10 10 10 11 16 Wheel 4 | . . . . . . . 16 15 25 11 7 7 7 7 6 18 18 11 6 5 5 5 5 6 9 . . . . 2 . Device 12 | . . . 16 11 11 11 8 15 6 8 25 21 21 19 16 18 12 12 12 22 11 11 13 16 11 7 10 9 7 14 16 Storage 8 | . 14 14 11 11 11 11 9 7 15 7 7 7 7 7 6 6 11 11 6 5 9 11 7 5 6 6 5 5 5 5 6 Processor 12 | . . . . . . . 8 15 15 13 7 7 7 8 18 18 18 18 18 16 16 16 16 15 21 25 25 23 20 20 18 Hackware 2 | . . . . . . . . . . 11 . . . . . . . . . . . . . . 4 5 5 5 5 4 3 Protection 7 | . 13 14 14 22 22 22 9 7 7 3 2 7 7 7 5 . . . 5 . 5 5 5 5 . 5 5 6 9 1 1 Energy Gun 2 | . . . . . . . . . . . . 5 . 7 3 . . 10 6 3 . 5 4 . 1 5 5 . 11 10 . Energy Cannon 4 | . . . . . . . . . . 7 7 7 . 9 8 12 12 . 8 12 15 5 7 13 5 . . . . . 9 Ballistic Gun 6 | . 23 26 19 22 2 21 17 14 12 4 . . . . 1 . . . . . . . . . . . . . . . . Ballistic Cannon 1 | . . . . . . . . . . 1 6 7 . . . . . . . . . . . . 2 5 9 . 3 1 . Naked Turns . | . . . . . . . . . . . . . . . . . . . . . . . . . . . . . . . . Heaviest Build 224 | 11 55 55 109 103 103 113 113 114 115 116 118 121 117 122 175 180 184 184 182 191 202 190 204 209 211 195 204 207 217 202 224 Greatest Support 177 | 20 40 40 40 40 40 40 60 24 48 70 70 28 28 28 48 48 48 48 28 28 28 28 28 50 121 145 145 145 145 177 177 Greatest Overweight (x) 17 | . 2 1 2 2 2 2 8 4 4 9 4 4 4 4 6 3 3 6 6 6 7 6 7 7 17 1 1 1 1 7 2 Average Overweight (x) 3 | . 1 1 1 2 2 2 3 4 2 2 3 4 3 4 4 3 3 4 6 6 6 6 6 6 5 1 1 1 1 1 1 Largest Inventory Capacity 35 | . 20 20 25 25 25 25 25 25 25 25 25 25 25 25 30 30 30 30 30 30 35 30 30 30 30 30 30 30 30 30 30 Average Capacity 27 | . 18 20 24 25 25 25 25 25 25 25 25 25 25 25 25 30 30 30 30 30 30 30 30 30 30 30 30 30 30 30 30 Most Carried 30 | . 17 18 25 25 25 24 25 25 25 25 25 25 25 25 25 25 28 30 30 30 30 30 30 30 30 30 30 30 30 28 28 Average Carried 24 | . 14 16 22 24 23 21 23 24 24 24 24 24 24 24 23 23 26 29 30 28 29 30 29 28 23 27 28 29 29 25 19 Final Capacity 30 | 8 20 20 25 25 25 25 25 25 25 25 25 25 25 25 30 30 30 30 30 30 30 30 30 30 30 30 30 30 30 30 30 Final Carried 30 | 6 15 18 25 25 23 22 25 25 25 25 25 25 25 25 23 25 28 30 30 29 30 30 29 28 29 30 29 28 29 20 19 Class Distribution -------------------- 26% | Mutant 25% | Hauler-Mutant 17% | Scavenger-Mutant 11% | Hauler-Skirmisher 5% | Hauler-Tank 4% | Hauler-Gunner 4% | Hacker-Mutant Dominant Class ---------------- Mutant | -10/Materials Mutant | -10/Mines Mutant | -9/Materials Scavenger-Mutant | -9/Mines Mutant | -9/Exiles Mutant | -8/Mines Mutant | -8/Materials Scavenger-Mutant | -7/Factory Mutant | -7/Waste Hacker-Mutant | -7/Factory Scavenger-Mutant | -7/Lower Caves Scavenger-Tank | -7/Lower Caves Mutant | -7/Data Miner Scavenger-Mutant | -6/Proximity Caves Scavenger-Mutant | -6/Factory Hauler-Mutant | -6/Lower Caves Hauler-Mutant | -6/Lower Caves Hauler-Mutant | -6/Zion Hauler-Mutant | -5/Proximity Caves Hauler-Skirmisher | -5/Factory Hauler-Skirmisher | -5/Upper Caves Hauler-Mutant | -5/Upper Caves Hauler-Mutant | -5/Warlord Hauler-Assassin | -4/Proximity Caves Hauler-Mutant | -4/Factory Hauler-Mutant | -4/Upper Caves Hauler-Gunner | -4/Upper Caves Hauler-Mutant | -4/Zhirov Hauler-Skirmisher | -3/Proximity Caves Hauler-Mutant | -3/Research Hauler-Mutant | -3/Armory Resources | -11 -10 -10 -9 -9 -9 -8 -8 -7 -7 -7 -7 -7 -7 -6 -6 -6 -6 -6 -5 -5 -5 -5 -5 -4 -4 -4 -4 -4 -3 -3 -3 ----------- Run | Jun Mat Min Mat Min Exi Min Mat Fac Was Fac Low Low Dat Pro Fac Low Low Zio Pro Fac Upp Upp War Pro Fac Upp Upp Zhi Pro Res Arm Matter Collected 10931 | 198 311 62 766 253 73 626 271 312 481 1146 242 37 . 156 379 63 43 49 206 30 320 57 6 174 1151 553 134 . 326 1092 1414 Remotely 145 | . . . . . . . . . . . . . . . . . . . . . . . . . . . . . . . 145 Salvage Created 17024 | . 621 20 1255 269 . 596 510 457 1363 2076 78 48 . 103 451 45 . . 343 21 648 509 . 433 1551 165 . . 441 2466 2555 Parts 817 | . 48 . 85 15 . 38 29 32 9 100 9 3 . 6 24 4 . . 16 5 27 19 . 18 81 6 . . 12 123 108 Haulers Intercepted 6 | . 1 . 3 . . . 1 . . 1 . . . . . . . . . . . . . . . . . . . . . Recyclers Shooed 7 | . . . . . . 1 . . . . . . . . . . . . . . . . . . . . . . . 6 . Parts Field Recycled . | . . . . . . . . . . . . . . . . . . . . . . . . . . . . . . . . Retrieved Matter . | . . . . . . . . . . . . . . . . . . . . . . . . . . . . . . . . Parts Self-Destructed 86 | . . . . . . . . . . . 8 3 . 7 . 3 . . 14 . 6 . . 5 . 23 11 . 6 . . Prevented 50 | . . . . . . . . . . . . . . 1 . . . . 18 . 19 . . . . . 2 . 10 . . Kills | -11 -10 -10 -9 -9 -9 -8 -8 -7 -7 -7 -7 -7 -7 -6 -6 -6 -6 -6 -5 -5 -5 -5 -5 -4 -4 -4 -4 -4 -3 -3 -3 ------- Run | Jun Mat Min Mat Min Exi Min Mat Fac Was Fac Low Low Dat Pro Fac Low Low Zio Pro Fac Upp Upp War Pro Fac Upp Upp Zhi Pro Res Arm Combat Hostiles Destroyed 301 | . 14 1 32 3 . 17 10 9 6 36 4 1 . 4 10 3 . . 7 . 9 6 . 10 27 3 . . 6 35 48 Melee 11 | . . . 7 . . . . . . 2 . . . . . . . . . . . . . . 2 . . . . . . Guns 97 | . 11 1 19 3 . 13 10 6 1 8 . 1 . 1 6 . . . . . . . . . 1 . . . 1 15 . Cannons 93 | . . . . . . . . . . 20 . . . 3 3 . . . 1 . 1 . . 2 22 3 . . 1 14 23 AOE 69 | . 3 . 6 . . 4 . 3 5 3 4 . . . . 3 . . 6 . 5 1 . 8 . . . . . 1 17 Classes Destroyed 25 | . 6 1 3 . . 3 . 3 1 1 1 . . 1 . . . . . . 1 . . . 1 . . . . . 3 Worker 13 | . . . 1 2 . . . . . 4 . . . . 1 . . . . . . . . . . . . . . 5 . Builder 11 | . 4 . . . . 2 . . . 1 . . . . . . . . . 1 . . . . 1 . . . . 2 . Tunneler 1 | . . . 1 . . . . . . . . . . . . . . . . . . . . . . . . . . . . Hauler 6 | . 1 . 3 . . . 1 . . 1 . . . . . . . . . . . . . . . . . . . . . Recycler 8 | . 2 . . 2 . 1 . . . . . . . . . . . . . . . . . . 1 . . . . 2 . Mechanic 1 | . . . . . . . . . . . . . . . . . . . . . . . . . 1 . . . . . . Operator 1 | . . . . . . . . . . 1 . . . . . . . . . . . . . . . . . . . . . Drone 2 | . . . . . . . . . . . . . . 1 . . . . . . . . . . . . . . 1 . . Watcher 17 | . 2 . 5 . . . 1 1 . 3 . . . . 1 . . . . . . . . . . . . . . 2 2 Swarmer 74 | . 6 . 10 . . 7 3 . . . 4 . . 3 6 3 . . 4 . . . . 9 4 . . . . 8 7 Saboteur 5 | . . . . . . . . . . . . . . . . . . . . . . . . . . . . . . . 5 Grunt 92 | . 8 . 17 3 . 7 4 3 . 21 . . . . 1 . . . 1 . 5 . . . 6 3 . . 4 7 2 Brawler 7 | . . . . . . 1 1 . . . . . . . . . . . 1 . . . . . 1 . . . 1 . 2 Duelist 11 | . . . . . . 1 . . . 1 . . . . . . . . . . . . . . . . . . . . 9 Protector 3 | . . . . . . . . . . . . . . . . . . . . . . . . . . . . . . . 3 Researcher 1 | . . . . . . . . . . . 1 . . . . . . . . . . . . . . . . . . . . Sentry 28 | . . . 5 . . . 2 . . 8 . . . . . . . . 1 . 1 . . 1 4 . . . . 5 1 Demolisher 1 | . . . . . . . . . . . . . . . . . . . . . . . . . . . . . . . 1 Specialist 5 | . . . . . . . . 2 . . . . . . . . . . . . . . . . . . . . . . 3 Hunter 20 | . . . . . . 1 . 2 . 2 . 1 . . 3 . . . . . 3 . . . 1 . . . 1 2 4 Programmer 38 | . . . . . . . . 1 . 4 . . . . . . . . . . . . . . 10 . . . . 12 11 Heavy 3 | . . . . . . . . 1 . . . . . . . . . . . . . . . . 1 . . . . 1 . Compactor 6 | . . . . . . . . . 6 . . . . . . . . . . . . . . . . . . . . . . Assembled 1 | . . 1 . . . . . . . . . . . . . . . . . . . . . . . . . . . . . Thug 1 | . . . . . . . . . . . . . . . . . . . . . . 1 . . . . . . . . . Savage 4 | . . . . . . . . . . . . . . . . . . . . . . 4 . . . . . . . . . Butcher 1 | . . . . . . . . . . . . . . . . . . . . . . 1 . . . . . . . . . Mutant 2 | . . . . . . . . . . . . . . . . . . . . . 1 1 . . . . . . . . . Sapper 4 | . . . . . . . . . . . . . . . . . . . . . . . . 4 . . . . . . . Best Kill Streak 9 | . 9 1 4 4 . 6 3 3 4 5 4 1 . 3 4 3 . . 4 1 3 6 . 5 4 3 . . 2 9 5 Combat Bots Only 6 | . 3 1 4 3 . 4 3 3 4 4 4 1 . 3 4 3 . . 4 . 3 6 . 5 4 3 . . 2 6 5 Max Kills in Single Turn 5 | . 5 1 2 2 . 2 2 2 1 1 3 1 . 1 1 3 . . 2 1 2 1 . 3 1 1 . . 1 1 3 Gunslinging 1 | . 1 . 1 1 . 1 1 . . . . . . . . . . . . . . . . . . . . . . . . Exploded 3 | . 2 . 2 . . 2 . 2 1 1 3 . . . . 3 . . 2 . 1 1 . 3 . . . . . 1 3 Melee 1 | . . . 1 . . . . . . 1 . . . . . . . . . . . . . . 1 . . . . . . Uniques/NPCs Destroyed . | . . . . . . . . . . . . . . . . . . . . . . . . . . . . . . . . Combat | -11 -10 -10 -9 -9 -9 -8 -8 -7 -7 -7 -7 -7 -7 -6 -6 -6 -6 -6 -5 -5 -5 -5 -5 -4 -4 -4 -4 -4 -3 -3 -3 -------- Run | Jun Mat Min Mat Min Exi Min Mat Fac Was Fac Low Low Dat Pro Fac Low Low Zio Pro Fac Upp Upp War Pro Fac Upp Upp Zhi Pro Res Arm Damage Taken 26083 | . 454 106 1510 147 . 1038 542 449 . 2750 79 58 . 91 1113 . . . 82 14 738 257 263 572 4036 373 45 . 793 4995 5578 Core 2359 | . 25 28 116 . . 111 41 70 . 213 17 . . . 173 . . . . . 36 12 . 33 830 40 . . 62 216 336 Absorbed by Shields 1505 | . . . 545 59 . 172 197 162 . 191 . 22 . 8 . . . . . 5 144 . . . . . . . . . . Reduced by Siege Mode 709 | . . . . . . . . . . 47 . . . . . . . . . . . . . . . . . . 25 544 93 Redirected to Shielding 144 | . . . . . . . . . . . . . . . . . . . . . . . . . . . . . . 107 37 Regen/Repaired (Parts) 1078 | . . . . . . . . . . . . . . . . . . 759 . . . . 136 . 151 26 . . . 6 . Core Remaining (%) 69 | 100 . 78 . . . 43 92 . . . . . . 57 . . . . 79 . . . . 91 . . . . 18 . . Volleys Fired 918 | . 39 5 79 8 . 47 45 30 15 118 2 3 . 4 33 1 . . 11 5 26 16 10 17 98 7 3 . 19 110 167 Largest 3 | . 2 2 2 2 . 2 2 2 2 2 1 3 . 3 3 1 . . 3 3 3 2 1 3 3 2 2 . 3 3 3 Hottest 360 | . 40 46 46 46 . 46 46 56 50 145 39 187 . 212 198 39 . . 220 220 278 129 90 278 278 153 153 . 241 269 360 Shots Fired 1688 | . 73 7 152 19 . 89 90 58 21 223 3 8 . 12 87 1 . . 23 11 45 23 10 25 127 13 6 . 42 246 274 Gun 821 | . 68 4 145 19 . 83 90 56 12 62 . 3 . 4 40 . . . 7 3 3 7 . . 12 6 3 . 33 161 . Cannon 717 | . . . . . . . . . . 154 1 5 . 8 47 . . . 11 8 28 7 10 20 115 7 3 . 1 66 226 Launcher 150 | . 5 3 7 . . 6 . 2 9 7 2 . . . . 1 . . 5 . 14 9 . 5 . . . . 8 19 48 Special . | . . . . . . . . . . . . . . . . . . . . . . . . . . . . . . . . Kinetic 722 | . 68 4 145 19 . 83 90 56 12 84 1 3 . . 20 . . . . . . . . . 58 7 3 . 1 66 2 Thermal 803 | . . . . . . . . . . 132 . 5 . 8 67 . . . 17 11 23 . 10 20 53 6 3 . 23 155 270 Explosive 41 | . 5 3 7 . . 6 . 2 9 . 2 . . . . 1 . . . . . . . 5 . . . . . . 1 Electromagnetic 122 | . . . . . . . . . . 7 . . . 4 . . . . 6 . 22 23 . . 16 . . . 18 25 1 Robot Hit Streak 33 | . 6 1 12 5 . 15 13 21 11 14 7 5 . 3 12 . . . 13 5 15 12 . 8 20 9 3 . 8 30 33 Robot Miss Streak 9 | . 2 1 9 4 . 3 4 5 2 4 . 1 . 1 4 . . . 1 2 1 1 . 2 8 5 1 . 3 2 4 Penetration Max 1 | . . . . . . . . . . . . . . . 1 . . . . . . . . . . . . . . 1 . Secondary Targets 17 | . 3 . 3 1 . 3 1 1 . . . . . . . . . . . . . . . . . . . . . 5 . Max Gunslinging Chain 1 | . 1 . 1 1 . 1 1 1 . . . . . . . . . . . . . . . . . . . . . 1 . Capacitor 52 | . . . . . . . . . . . . . . . . . . . . . . . . . 52 . . . . . . Shots Hit Robots 1164 | . 44 2 113 9 . 59 67 43 18 165 3 3 . 5 56 . . . 17 5 28 13 . 18 114 5 3 . 24 188 162 Core Hits 655 | . 28 5 55 7 . 37 23 23 24 91 5 4 . 4 17 4 . . 20 1 20 12 . 16 63 5 2 . 11 90 88 Critical Kills 11 | . 2 . . . . . . 1 . 2 . . . . 2 . . . . . . . . . . . . . . . 4 Critical Parts Destroyed 4 | . . . 2 . . . . . . . . . . . 2 . . . . . . . . . . . . . . . . Critical Strikes 44 | . 2 . 3 . . . . 1 . 3 . . . . 7 . . . . . 1 . . . 7 2 . . 2 12 4 Burn 7 | . . . . . . . . . . . . . . . 1 . . . . . . . . . . 1 . . 2 3 . Meltdown 7 | . . . . . . . . . . 2 . . . . 1 . . . . . . . . . . . . . . . 4 Destroy 8 | . 2 . 2 . . . . 1 . . . . . . 3 . . . . . . . . . . . . . . . . Blast 15 | . . . . . . . . . . . . . . . . . . . . . . . . . 5 1 . . . 9 . Corrupt 1 | . . . . . . . . . . . . . . . . . . . . . 1 . . . . . . . . . . Sever 4 | . . . 1 . . . . . . 1 . . . . 2 . . . . . . . . . . . . . . . . Impale 2 | . . . . . . . . . . . . . . . . . . . . . . . . . 2 . . . . . . Melee Attacks 114 | . . . 32 . . . . . . 16 2 . . . 17 . . 1 . . . . . 23 23 . . . . . . Impact . | . . . . . . . . . . . . . . . . . . . . . . . . . . . . . . . . Slashing 67 | . . . 32 . . . . . . 16 2 . . . 17 . . . . . . . . . . . . . . . . Piercing 47 | . . . . . . . . . . . . . . . . . . 1 . . . . . 23 23 . . . . . . Sneak Attacks 17 | . . . . . . . . . . 5 1 . . . . . . . . . . . . 9 2 . . . . . . Combat Hostiles . | . . . . . . . . . . . . . . . . . . . . . . . . . . . . . . . . Follow-up Attacks . | . . . . . . . . . . . . . . . . . . . . . . . . . . . . . . . . Damage Inflicted 44533 | . 1362 113 2856 217 . 1286 995 838 2451 4645 557 69 . 146 1462 188 . . 829 141 1838 946 . 1795 4058 244 80 . 1054 7233 9130 Guns 11254 | . 648 28 1411 198 . 784 995 688 185 866 . 20 . 44 341 . . . 88 39 22 143 . . 217 129 52 . 549 3807 . Cannons 17011 | . . . . . . . . . . 2809 . 49 . 102 966 . . . 410 102 776 131 . 280 3257 115 28 . 47 2272 5667 Explosions 13410 | . 714 81 638 . . 443 . 150 2266 459 476 . . . . 188 . . 331 . 1040 672 . 906 . . . . 458 1125 3463 Melee 2696 | . . . 784 . . . . . . 483 81 . . . 155 . . . . . . . . 609 584 . . . . . . Ramming 162 | . . 4 23 19 . 59 . . . 28 . . . . . . . . . . . . . . . . . . . 29 . Kinetic 10510 | . 648 28 1411 198 . 784 995 688 185 1239 . 28 . . 79 . . . . . . . . . 1675 115 28 . 47 2272 90 Thermal 20300 | . . . . . . . . . . 2477 . 41 . 44 1228 . . . 484 141 853 134 . 280 1376 129 52 . 440 3844 8777 Explosive 6080 | . 714 81 638 . . 443 . 150 2266 . 476 . . . . 188 . . . . . . . 906 . . . . . . 218 Electromagnetic 4785 | . . . . . . . . . . 418 . . . 102 . . . . 345 . 985 812 . . 423 . . . 567 1088 45 Impact . | . . . . . . . . . . . . . . . . . . . . . . . . . . . . . . . . Slashing 1503 | . . . 784 . . . . . . 483 81 . . . 155 . . . . . . . . . . . . . . . . Piercing 1193 | . . . . . . . . . . . . . . . . . . . . . . . . 609 584 . . . . . . Highest Corruption 44 | . . . 2 2 2 2 . . 26 29 29 29 29 29 1 1 1 4 1 . 1 . . . 11 11 11 11 19 8 44 Average Corruption 10 | . . . 2 2 2 2 . . 14 27 29 29 29 29 1 1 1 2 1 . 1 . . . 6 11 11 11 11 3 21 Corruption Purged 16 | . . . . . . . . . . . . . . . . . . . . . 1 . . . 1 . . . . 14 . Corruption Blocked . | . . . . . . . . . . . . . . . . . . . . . . . . . . . . . . . . Effects 736 | . . . 22 26 21 20 . . 13 198 38 29 16 22 7 5 4 . . . 8 . . . 51 46 35 11 27 36 101 Message Errors 170 | . . . 9 4 3 5 . . . 50 8 5 4 6 . 2 . . . . 1 . . . 11 12 8 4 6 6 26 Matter Fused 188 | . . . 7 7 4 3 . . 3 44 12 7 4 7 3 1 2 . . . 1 . . . 15 16 9 3 6 10 24 Heat Flow Errors 99 | . . . . 3 5 . . . 2 30 8 6 2 3 1 . 1 . . . 2 . . . 4 5 4 . 7 1 15 Energy Discharges 73 | . . . 2 3 5 1 . . 2 26 3 2 3 1 . 1 . . . . 2 . . . 7 2 1 . 2 4 6 Parts Rejected 9 | . . . . . . 1 . . 1 4 . . . . . . . . . . . . . . 1 1 . . 1 . . Parts Fused 13 | . . . 1 1 1 3 . . 1 . 1 . . . . . . . . . . . . . 1 . 2 . . 1 1 Data Loss (minor) 72 | . . . . 5 3 5 . . 3 10 2 4 2 2 1 1 1 . . . 1 . . . 4 5 4 1 3 7 8 Data Loss (major) 39 | . . . . . . 1 . . 1 12 . 1 1 2 1 . . . . . . . . . 4 2 5 2 1 3 3 Misfires 27 | . . . 2 3 . 1 . . . 7 1 1 . . 1 . . . . . 1 . . . 2 . 1 . 1 1 5 Alerts 17 | . . . . . . . . . . 4 3 1 . 1 . . . . . . . . . . 1 3 1 1 . 2 . Misdirections 2 | . . . . . . . . . . 1 . . . . . . . . . . . . . . . . . . . . 1 Weapon Failures 27 | . . . 1 . . . . . . 10 . 2 . . . . . . . . . . . . 1 . . . . 1 12 Overload Shots . | . . . . . . . . . . . . . . . . . . . . . . . . . . . . . . . . Overflow Damage 1085 | . 59 . 94 . . . . . . 115 36 . . . 53 . . . . . 30 . . 75 110 . . . 33 160 320 Projectiles 538 | . . . . . . . . . . 40 . . . . 53 . . . . . 25 . . 2 110 . . . 17 126 165 Explosions 423 | . 59 . 45 . . . . . . . 36 . . . . . . . . . 5 . . 73 . . . . 16 34 155 Melee 124 | . . . 49 . . . . . . 75 . . . . . . . . . . . . . . . . . . . . . Knockbacks 32 | . . . . . . . . . . 2 . 2 . . . . . . . . . . . . 8 . 1 . . 17 2 Impact 1 | . . . . . . . . . . . . . . . . . . . . . . . . . . . . . . 1 . Kinetic 26 | . . . . . . . . . . 2 . 2 . . . . . . . . . . . . 6 . 1 . . 13 2 Secondary 5 | . . . . . . . . . . . . . . . . . . . . . . . . . 2 . . . . 3 . Self-Inflicted Damage 214 | . 10 30 46 . . . . . . 33 . . . . . . . . . . 56 . . 16 . . . . 23 . . Shots 12 | . 1 1 2 . . . . . . 2 . . . . . . . . . . 4 . . 1 . . . . 1 . . Rammed 15 | . . 2 2 3 . 5 . . . 2 . . . . . . . . . . . . . . . . . . . 1 . Targets Rammed 18 | . . 2 2 5 . 6 . . . 2 . . . . . . . . . . . . . . . . . . . 1 . Kicked . | . . . . . . . . . . . . . . . . . . . . . . . . . . . . . . . . Crushed 3 | . . . . 2 . 1 . . . . . . . . . . . . . . . . . . . . . . . . . Highest Temperature 496 | . 19 . 33 197 261 323 50 24 245 402 246 227 130 216 418 . 86 . 147 263 338 . . 84 354 333 194 . 200 231 496 Average Temperature 98 | . 7 . 13 70 115 110 20 10 76 97 99 85 69 94 126 . 58 . 50 161 119 . . 34 122 155 71 . 87 66 127 Received Heat Transfer 4389 | . 192 . 591 42 . 515 264 12 . 1173 . . . . 135 . . . 12 . 134 54 9 78 186 72 . . 233 383 304 Effects 7 | . . . . . . . . . . 1 . . . . 1 . . . . . 1 . . . 2 1 . . . . 1 Shutdowns 2 | . . . . . . . . . . . . . . . 1 . . . . . . . . . . 1 . . . . . Energy Bleed 4 | . . . . . . . . . . 1 . . . . . . . . . . . . . . 2 . . . . . 1 Interference 1 | . . . . . . . . . . . . . . . . . . . . . 1 . . . . . . . . . . Siege Activations 22 | . . . . . . . . . . 7 . 1 . . 1 . . . . . . . . . . . . . 1 7 5 Total Turns 381 | . . . . . . . . . . 99 . 4 . . 7 . . . . . . . . . . . . . 25 145 101 Longest Duration 48 | . . . . . . . . . . 25 . 4 . . 7 . . . . . . . . . . . . . 25 45 48 Robots Corrupted 18 | . . . . . . . . . . 1 . . . . . . . . . . 3 5 . . 2 . . . 4 3 . Combat Hostiles 18 | . . . . . . . . . . 1 . . . . . . . . . . 3 5 . . 2 . . . 4 3 . Parts Fried 30 | . . . . . . . . . . 2 . . . 1 . . . . 1 . 5 5 . . 4 . . . 3 6 3 Impact Corruptions 1 | . . . . . . 1 . . . . . . . . . . . . . . . . . . . . . . . . . Robots Melted 13 | . . . . . . . . . . 2 . . . . 1 . . . . . . . . . . . . . . 2 8 Combat Hostiles 13 | . . . . . . . . . . 2 . . . . 1 . . . . . . . . . . . . . . 2 8 Parts Melted 69 | . . . . . . . . . . 9 . . . . 5 . . . . . 2 . . . . . . . 2 16 35 Heat Transferred 23856 | . . . . . . . . . . 3617 . 74 . 74 1258 . . . 420 148 883 150 . 335 1049 259 74 . 790 5108 9617 Parts Sabotaged . | . . . . . . . . . . . . . . . . . . . . . . . . . . . . . . . . Parts Stolen . | . . . . . . . . . . . . . . . . . . . . . . . . . . . . . . . . Parts Stripped . | . . . . . . . . . . . . . . . . . . . . . . . . . . . . . . . . Power Chain Reactions 10 | . . . . . . . . . . 1 . . . . . . . . 1 . 4 2 . . . . . . 1 1 . Missiles Intercepted . | . . . . . . . . . . . . . . . . . . . . . . . . . . . . . . . . Alert | -11 -10 -10 -9 -9 -9 -8 -8 -7 -7 -7 -7 -7 -7 -6 -6 -6 -6 -6 -5 -5 -5 -5 -5 -4 -4 -4 -4 -4 -3 -3 -3 ------- Run | Jun Mat Min Mat Min Exi Min Mat Fac Was Fac Low Low Dat Pro Fac Low Low Zio Pro Fac Upp Upp War Pro Fac Upp Upp Zhi Pro Res Arm Peak Influence 932 | . 262 86 561 319 . 270 320 175 60 580 . . . . 491 . . . . 66 . . . . 273 . . . . 682 932 Initial 450 | . . 58 . 218 . . . 88 14 42 . . . . 450 . . . . 14 . . . . 126 . . . . 122 357 Average 208 | . 103 17 312 87 . 59 180 99 55 245 . . . . 314 . . . . 44 . . . . 137 . . . . 170 645 Maximum Alert Level 3 | . 1 . 2 1 . 1 1 . . 2 . . . . 2 . . . . . . . . . 1 . . . . 2 3 Low Security (%) 64 | . 78 100 36 79 . 98 73 100 100 45 . . . . 33 . . . . 100 . . . . 84 . . . . 76 . Level 1 14 | . 21 . 16 20 . 1 26 . . 34 . . . . 20 . . . . . . . . . 15 . . . . 10 2 Level 2 18 | . . . 46 . . . . . . 19 . . . . 46 . . . . . . . . . . . . . . 13 71 Level 3 2 | . . . . . . . . . . . . . . . . . . . . . . . . . . . . . . . 26 Level 4 . | . . . . . . . . . . . . . . . . . . . . . . . . . . . . . . . . Level 5 . | . . . . . . . . . . . . . . . . . . . . . . . . . . . . . . . . High Security . | . . . . . . . . . . . . . . . . . . . . . . . . . . . . . . . . Max Security . | . . . . . . . . . . . . . . . . . . . . . . . . . . . . . . . . Squads Dispatched 60 | . 3 . 5 . . . 3 4 . 14 . . . . 6 . . . . . . . . . 8 . . . . 10 7 Investigation 12 | . 2 . 1 . . . . 1 . 3 . . . . 4 . . . . . . . . . . . . . . . 1 Extermination 22 | . . . . . . . . 1 . 4 . . . . 1 . . . . . . . . . 4 . . . . 7 5 Reinforcement 21 | . 1 . 4 . . . 1 2 . 6 . . . . 1 . . . . . . . . . 4 . . . . 2 . Assault 3 | . . . . . . . . . . 1 . . . . . . . . . . . . . . . . . . . 1 1 Garrison 2 | . . . . . . . 2 . . . . . . . . . . . . . . . . . . . . . . . . Intercept . | . . . . . . . . . . . . . . . . . . . . . . . . . . . . . . . . Searches Triggered 1 | . . . . . . . . . . . . . . . 1 . . . . . . . . . . . . . . . . Data Miner Redirects 3 | . . . . . . . . . . . . . . . 1 . . . . . . . . . . . . . . 1 1 Construction Impeded 3 | . . . . . . . . . . 1 . . . . 1 . . . . . . . . . 1 . . . . . . Haulers Reinforced 2 | . . . . . . . . . . 1 . . . . . . . . . . . . . . . . . . . 1 . Active Scanning Responses . | . . . . . . . . . . . . . . . . . . . . . . . . . . . . . . . . Cargo Convoy Interrupts . | . . . . . . . . . . . . . . . . . . . . . . . . . . . . . . . . Stealth | -11 -10 -10 -9 -9 -9 -8 -8 -7 -7 -7 -7 -7 -7 -6 -6 -6 -6 -6 -5 -5 -5 -5 -5 -4 -4 -4 -4 -4 -3 -3 -3 --------- Run | Jun Mat Min Mat Min Exi Min Mat Fac Was Fac Low Low Dat Pro Fac Low Low Zio Pro Fac Upp Upp War Pro Fac Upp Upp Zhi Pro Res Arm Distress Signals 19 | . . . 4 . . . 3 . . 2 . . . . . . . . . . . . . . . . . . . 4 6 Communications Jammed 1 | . . . . . . . . . . . . . . . 1 . . . . . . . . . . . . . . . . Distress Signals 1 | . . . . . . . . . . . . . . . 1 . . . . . . . . . . . . . . . . Times Spotted 455 | . 19 2 56 6 . 17 18 12 6 56 4 1 . 4 20 . . . 10 4 13 6 14 14 33 8 1 . 11 53 67 Peak Tracking Total 13 | . 4 1 7 3 . 6 4 3 3 6 4 1 . 3 4 . . . 3 4 4 5 13 5 5 4 2 . 4 7 8 Tactical Retreats 17 | . . . . . . . 3 . . 3 . . . . 1 . . . . . . . 1 . 1 1 . . 2 4 1 Traps | -11 -10 -10 -9 -9 -9 -8 -8 -7 -7 -7 -7 -7 -7 -6 -6 -6 -6 -6 -5 -5 -5 -5 -5 -4 -4 -4 -4 -4 -3 -3 -3 ------- Run | Jun Mat Min Mat Min Exi Min Mat Fac Was Fac Low Low Dat Pro Fac Low Low Zio Pro Fac Upp Upp War Pro Fac Upp Upp Zhi Pro Res Arm Traps Triggered 20 | . 1 . 1 . . . . 4 . 6 . . . . 2 . . . . . 1 . . . . . . . . 5 . Indirectly . | . . . . . . . . . . . . . . . . . . . . . . . . . . . . . . . . Trap Hack Attempts . | . . . . . . . . . . . . . . . . . . . . . . . . . . . . . . . . Triggered . | . . . . . . . . . . . . . . . . . . . . . . . . . . . . . . . . Disarmed . | . . . . . . . . . . . . . . . . . . . . . . . . . . . . . . . . Reprogrammed . | . . . . . . . . . . . . . . . . . . . . . . . . . . . . . . . . Reused . | . . . . . . . . . . . . . . . . . . . . . . . . . . . . . . . . Traps Extracted . | . . . . . . . . . . . . . . . . . . . . . . . . . . . . . . . . Installed . | . . . . . . . . . . . . . . . . . . . . . . . . . . . . . . . . Triggered 10 | . . . . . . . . . . . . . . . . . . . . . . . 10 . . . . . . . . Machines | -11 -10 -10 -9 -9 -9 -8 -8 -7 -7 -7 -7 -7 -7 -6 -6 -6 -6 -6 -5 -5 -5 -5 -5 -4 -4 -4 -4 -4 -3 -3 -3 ---------- Run | Jun Mat Min Mat Min Exi Min Mat Fac Was Fac Low Low Dat Pro Fac Low Low Zio Pro Fac Upp Upp War Pro Fac Upp Upp Zhi Pro Res Arm Machines Disabled 18 | . 2 . 3 . . . 1 1 . 1 . . . . . . . . . . . . . . 1 1 . . . 2 6 Max in Single Turn 2 | . 2 . 1 . . . 1 1 . 1 . . . . . . . . . . . . . . 1 1 . . . 1 1 Garrison Access 4 | . . . . . . . . . . 3 . . . . 1 . . . . . . . . . . . . . . . . Machines Repaired . | . . . . . . . . . . . . . . . . . . . . . . . . . . . . . . . . Machines Sabotaged . | . . . . . . . . . . . . . . . . . . . . . . . . . . . . . . . . Overloaded Fab Kills . | . . . . . . . . . . . . . . . . . . . . . . . . . . . . . . . . Hacking | -11 -10 -10 -9 -9 -9 -8 -8 -7 -7 -7 -7 -7 -7 -6 -6 -6 -6 -6 -5 -5 -5 -5 -5 -4 -4 -4 -4 -4 -3 -3 -3 --------- Run | Jun Mat Min Mat Min Exi Min Mat Fac Was Fac Low Low Dat Pro Fac Low Low Zio Pro Fac Upp Upp War Pro Fac Upp Upp Zhi Pro Res Arm Machines Accessed 44 | . 5 2 1 . 1 . 1 2 . 9 . . 4 . 7 1 . . . . 1 . 1 . 2 1 1 4 . 1 . Terminals 14 | . 3 1 . . . . 1 1 . 4 . . . . 3 . . . . . . . . . . . . . . 1 . Fabricators 4 | . . . . . . . . 1 . . . . . . 2 . . . . . . . . . 1 . . . . . . Repair Stations 2 | . . . . . . . . . . . . . . . 1 . . . . . . . . . 1 . . . . . . Recycling Units 5 | . 2 . 1 . . . . . . 2 . . . . . . . . . . . . . . . . . . . . . Scanalyzers . | . . . . . . . . . . . . . . . . . . . . . . . . . . . . . . . . Garrison Access 4 | . . . . . . . . . . 3 . . . . 1 . . . . . . . . . . . . . . . . Total Hacks 135 | . 14 4 1 . 1 . 1 5 . 20 . . 31 . 27 1 . . . . 1 . 1 . 8 1 1 17 . 1 . Successful 98 | . 7 2 1 . 1 . . 2 . 9 . . 31 . 15 1 . . . . 1 . 1 . 7 1 1 17 . 1 . Failed 36 | . 6 2 . . . . 1 3 . 11 . . . . 12 . . . . . . . . . 1 . . . . . . Catastrophic 8 | . 1 . . . . . 1 1 . 4 . . . . 1 . . . . . . . . . . . . . . . . Database Lockouts 1 | . 1 . . . . . . . . . . . . . . . . . . . . . . . . . . . . . . Manual 59 | . 13 3 1 . . . 1 4 . 9 . . . . 12 . . . . 5 . . 1 . 2 . . . . 6 2 Terminals 40 | . 12 3 . . . . 1 1 . 11 . . . . 11 . . . . . . . . . . . . . . 1 . Fabricators 20 | . . . . . . . . 4 . . . . . . 10 . . . . . . . . . 6 . . . . . . Repair Stations 4 | . . . . . . . . . . . . . . . 2 . . . . . . . . . 2 . . . . . . Recycling Units 5 | . 2 . 1 . . . . . . 2 . . . . . . . . . . . . . . . . . . . . . Scanalyzers . | . . . . . . . . . . . . . . . . . . . . . . . . . . . . . . . . Garrison Access 11 | . . . . . . . . . . 7 . . . . 4 . . . . . . . . . . . . . . . . Terminal Hacks 67 | . 5 2 . . 1 . . . . 3 . . 31 . 2 1 . . . . 1 . 1 . . 1 1 17 . 1 . Record 18 | . . . . . 1 . . . . . . . 11 . . . . . . . . . . . . 1 . 5 . . . Part Schematic 15 | . 1 . . . . . . . . . . . 10 . . . . . . . . . . . . . . 4 . . . Robot Schematic 7 | . . . . . . . . . . . . . 7 . . . . . . . . . . . . . . . . . . Robot Analysis 8 | . 4 . . . . . . . . . . . . . . . . . . . . . . . . . . 4 . . . Prototype ID Bank 8 | . . 1 . . . . . . . . . . 3 . . . . . . . . . . . . . . 4 . . . Open Door 5 | . . 1 . . . . . . . . . . . . . 1 . . . . 1 . 1 . . . 1 . . . . Open DSF 1 | . . . . . . . . . . . . . . . . . . . . . . . . . . . . . . 1 . Level Access Points 1 | . . . . . . . . . . 1 . . . . . . . . . . . . . . . . . . . . . Branch Access Points 1 | . . . . . . . . . . . . . . . 1 . . . . . . . . . . . . . . . . Terminal Index 1 | . . . . . . . . . . . . . . . 1 . . . . . . . . . . . . . . . . Alert Level 1 | . . . . . . . . . . 1 . . . . . . . . . . . . . . . . . . . . . Unreport Threat 1 | . . . . . . . . . . 1 . . . . . . . . . . . . . . . . . . . . . Fabricator Hacks 11 | . . . . . . . . 1 . . . . . . 6 . . . . . . . . . 4 . . . . . . Load Schematic 7 | . . . . . . . . 1 . . . . . . 4 . . . . . . . . . 2 . . . . . . Build 4 | . . . . . . . . . . . . . . . 2 . . . . . . . . . 2 . . . . . . Repair Station Hacks 3 | . . . . . . . . . . . . . . . 1 . . . . . . . . . 2 . . . . . . Scan Component 2 | . . . . . . . . . . . . . . . 1 . . . . . . . . . 1 . . . . . . Repair 1 | . . . . . . . . . . . . . . . . . . . . . . . . . 1 . . . . . . Recycling Unit Hacks . | . . . . . . . . . . . . . . . . . . . . . . . . . . . . . . . . Scanalyzer . | . . . . . . . . . . . . . . . . . . . . . . . . . . . . . . . . Garrison Access Hacks 3 | . . . . . . . . . . 3 . . . . . . . . . . . . . . . . . . . . . Seal Access 3 | . . . . . . . . . . 3 . . . . . . . . . . . . . . . . . . . . . Unauthorized Hacks 14 | . 2 . 1 . . . . 1 . 3 . . . . 6 . . . . . . . . . 1 . . . . . . Terminals 5 | . . . . . . . . . . 1 . . . . 4 . . . . . . . . . . . . . . . . Assimilate 1 | . . . . . . . . . . . . . . . 1 . . . . . . . . . . . . . . . . Botnet 2 | . . . . . . . . . . 1 . . . . 1 . . . . . . . . . . . . . . . . Operators 2 | . . . . . . . . . . . . . . . 2 . . . . . . . . . . . . . . . . Fabricators 3 | . . . . . . . . 1 . . . . . . 1 . . . . . . . . . 1 . . . . . . Fabnet 1 | . . . . . . . . . . . . . . . . . . . . . . . . . 1 . . . . . . Recompile 2 | . . . . . . . . 1 . . . . . . 1 . . . . . . . . . . . . . . . . Repair Stations . | . . . . . . . . . . . . . . . . . . . . . . . . . . . . . . . . Recycling Units 5 | . 2 . 1 . . . . . . 2 . . . . . . . . . . . . . . . . . . . . . Tunnel 5 | . 2 . 1 . . . . . . 2 . . . . . . . . . . . . . . . . . . . . . Scanalyzers . | . . . . . . . . . . . . . . . . . . . . . . . . . . . . . . . . Garrison Access 1 | . . . . . . . . . . . . . . . 1 . . . . . . . . . . . . . . . . Jam 1 | . . . . . . . . . . . . . . . 1 . . . . . . . . . . . . . . . . Data Cores Recovered . | . . . . . . . . . . . . . . . . . . . . . . . . . . . . . . . . Used . | . . . . . . . . . . . . . . . . . . . . . . . . . . . . . . . . Hacking Detections 21 | . 3 1 . . . . 1 2 . 5 . . . . 7 . . . . . . . . . 2 . . . . . . Full Trace Events 3 | . . . . . . . . . . 1 . . . . 2 . . . . . . . . . . . . . . . . Feedback Events . | . . . . . . . . . . . . . . . . . . . . . . . . . . . . . . . . Feedback Blocked . | . . . . . . . . . . . . . . . . . . . . . . . . . . . . . . . . Robot Schematics Acquired 7 | . . . . . . . . . . . . . 7 . . . . . . . . . . . . . . . . . . Robots Built 5 | . . . . . . . . . . . . . . . 3 . . . . . . . . . 2 . . . . . . Authchips 1 | . . . . . . . . . . . . . . . . . . . . . . . . . 1 . . . . . . Time 210 | . . . . . . . . . . . . . . . 134 . . . . . . . . . 76 . . . . . . Total Robot Build Rating 22 | . . . . . . . . . . . . . . . 12 . . . . . . . . . 10 . . . . . . Part Schematics Acquired 15 | . 1 . . . . . . . . . . . 10 . . . . . . . . . . . . . . 4 . . . Parts Built 2 | . . . . . . . . . . . . . . . 1 . . . . . . . . . 1 . . . . . . Authchips 2 | . . . . . . . . . . . . . . . 1 . . . . . . . . . 1 . . . . . . Time 127 | . . . . . . . . . . . . . . . 51 . . . . . . . . . 76 . . . . . . Total Part Build Rating 6 | . . . . . . . . . . . . . . . 1 . . . . . . . . . 5 . . . . . . Parts Repaired 1 | . . . . . . . . . . . . . . . . . . . . . . . . . 1 . . . . . . Time 22 | . . . . . . . . . . . . . . . . . . . . . . . . . 22 . . . . . . Parts Recycled . | . . . . . . . . . . . . . . . . . . . . . . . . . . . . . . . . Recycled Matter . | . . . . . . . . . . . . . . . . . . . . . . . . . . . . . . . . Retrieved Matter . | . . . . . . . . . . . . . . . . . . . . . . . . . . . . . . . . Retrieved Components . | . . . . . . . . . . . . . . . . . . . . . . . . . . . . . . . . Parts Scanalyzed . | . . . . . . . . . . . . . . . . . . . . . . . . . . . . . . . . Part Schematics Acquired . | . . . . . . . . . . . . . . . . . . . . . . . . . . . . . . . . Parts Damaged . | . . . . . . . . . . . . . . . . . . . . . . . . . . . . . . . . Bothacking | -11 -10 -10 -9 -9 -9 -8 -8 -7 -7 -7 -7 -7 -7 -6 -6 -6 -6 -6 -5 -5 -5 -5 -5 -4 -4 -4 -4 -4 -3 -3 -3 ------------ Run | Jun Mat Min Mat Min Exi Min Mat Fac Was Fac Low Low Dat Pro Fac Low Low Zio Pro Fac Upp Upp War Pro Fac Upp Upp Zhi Pro Res Arm Used RIF Installer . | . . . . . . . . . . . . . . . . . . . . . . . . . . . . . . . . Robots Hacked 1 | . . . . . . . . . . . . . . . . . . . . . . . . . . . . . . 1 . Non-combat . | . . . . . . . . . . . . . . . . . . . . . . . . . . . . . . . . Combat 1 | . . . . . . . . . . . . . . . . . . . . . . . . . . . . . . 1 . Robot Hacks Applied . | . . . . . . . . . . . . . . . . . . . . . . . . . . . . . . . . Relay Couplers Released . | . . . . . . . . . . . . . . . . . . . . . . . . . . . . . . . . Fabnet Peak Effective % 3 | . . . . . . . . . . . . . . . . . . . . . . . . . . . . . 3 3 3 Autooverrided 1 | . . . . . . . . . . . . . . . . . . . . . . . . . . . . . . 1 . Robots Rewired 3 | . . . . . . . . . . . . . . . . . . . . . . . . . . . . . . . 3 Allies Hacked 1 | . . . . . . . . . . 1 . . . . . . . . . . . . . . . . . . . . . Hacks Repelled . | . . . . . . . . . . . . . . . . . . . . . . . . . . . . . . . . Allies | -11 -10 -10 -9 -9 -9 -8 -8 -7 -7 -7 -7 -7 -7 -6 -6 -6 -6 -6 -5 -5 -5 -5 -5 -4 -4 -4 -4 -4 -3 -3 -3 -------- Run | Jun Mat Min Mat Min Exi Min Mat Fac Was Fac Low Low Dat Pro Fac Low Low Zio Pro Fac Upp Upp War Pro Fac Upp Upp Zhi Pro Res Arm Total Allies 28 | . . 1 . 3 . . . . . 3 . . . 1 4 . . 4 . 3 . . . . 2 . . . . 1 6 Largest Group 5 | . . 1 . 3 2 2 . . . 3 . . . 1 4 1 1 5 4 4 4 . . . 2 2 1 1 1 1 3 Highest-Rated Group 251 | . . 31 . 40 24 24 . . . 93 . . . 96 97 7 7 161 154 251 251 . . . 82 82 41 41 41 82 243 Highest-Rated Ally 96 | . . 31 . 16 16 16 . . . 31 . . . 96 96 7 7 41 41 70 70 . . . 41 41 41 41 41 82 81 Zionite Dispatches 3 | . . . . . . . . . . . . . . . . . . . . 2 . . . . . . . . . . 1 Light 1 | . . . . . . . . . . . . . . . . . . . . 1 . . . . . . . . . . . Recon 1 | . . . . . . . . . . . . . . . . . . . . 1 . . . . . . . . . . . Hacker 1 | . . . . . . . . . . . . . . . . . . . . . . . . . . . . . . . 1 Total Orders 33 | . . . . . 2 . . . . . . . . . 3 3 . . . . . . . . . 10 2 . 1 7 5 STAY 11 | . . . . . 1 . . . . . . . . . 1 2 . . . . . . . . . 3 . . . . 4 FOLLOW 7 | . . . . . 1 . . . . . . . . . 2 1 . . . . . . . . . 2 . . . . 1 EXPLORE 12 | . . . . . . . . . . . . . . . . . . . . . . . . . . 4 1 . 1 6 . RETURN 3 | . . . . . . . . . . . . . . . . . . . . . . . . . . 1 1 . . 1 . Ally Attacks 264 | . . 5 . 16 . 5 . . . 67 . . . 8 23 . . . 46 14 35 . . . 2 19 4 . 2 3 15 Total Damage 5120 | . . 41 . 192 . 50 . . . 1032 . . . 94 536 . . . 729 229 906 . . . 36 683 154 . 39 21 378 Kills 37 | . . 1 . 3 . . . . . 5 . . . 1 3 . . . 4 2 6 . . . 1 6 2 . 2 . 1 Allies Corrupted 1 | . . . . . . . . . . . . . . . . . . . . . . . . . . . . . . 1 . Allies Melted 1 | . . . . . . . . . . . . . . . . . . . 1 . . . . . . . . . . . . Intel | -11 -10 -10 -9 -9 -9 -8 -8 -7 -7 -7 -7 -7 -7 -6 -6 -6 -6 -6 -5 -5 -5 -5 -5 -4 -4 -4 -4 -4 -3 -3 -3 ------- Run | Jun Mat Min Mat Min Exi Min Mat Fac Was Fac Low Low Dat Pro Fac Low Low Zio Pro Fac Upp Upp War Pro Fac Upp Upp Zhi Pro Res Arm Robot Analysis Total 8 | . 4 . . . . . . . . . . . . . . . . . . . . . . . . . . 4 . . . Derelict Logs Recovered 14 | . . 1 . 2 . . . . . . 2 . . . . 1 1 1 2 . 1 . . . . 2 1 . . . . Drone Launches 13 | . . . . . . . . . . . . . . . . . . . . . . . . . . 4 2 . 1 6 . Drone Recoveries 11 | . . . . . . . . . . . . . . . . . . . . . . . . . . 4 2 . 1 4 . Decoded 0b10 Intel 110 | . . . . . . . . . . . . . . . 28 . . . . 12 . . . . 39 . . . . 31 . Garrisons 2 | . . . . . . . . . . . . . . . 1 . . . . . . . . . . . . . . 1 . Patrols 55 | . . . . . . . . . . . . . . . 12 . . . . 6 . . . . 19 . . . . 18 . Investigations 2 | . . . . . . . . . . . . . . . 2 . . . . . . . . . . . . . . . . Reinforcements 10 | . . . . . . . . . . . . . . . 1 . . . . . . . . . 9 . . . . . . Guards 41 | . . . . . . . . . . . . . . . 12 . . . . 6 . . . . 11 . . . . 12 . Zionite Intel Received 1 | . . . . . . . . . . . . . . . . . . . . . . . . . . . . . . 1 . Prototype Stockpiles 1 | . . . . . . . . . . . . . . . . . . . . . . . . . . . . . . 1 . Exploration | -11 -10 -10 -9 -9 -9 -8 -8 -7 -7 -7 -7 -7 -7 -6 -6 -6 -6 -6 -5 -5 -5 -5 -5 -4 -4 -4 -4 -4 -3 -3 -3 ------------- Run | Jun Mat Min Mat Min Exi Min Mat Fac Was Fac Low Low Dat Pro Fac Low Low Zio Pro Fac Upp Upp War Pro Fac Upp Upp Zhi Pro Res Arm Turns Passed 40678 | . 1409 1483 2639 1953 1425 2086 517 963 359 3625 797 512 288 435 1729 450 287 1565 878 501 3013 572 888 1772 2135 1336 1010 389 614 2989 2059 Spaces Moved 17034 | 1 535 606 722 597 438 595 224 526 221 1732 480 309 189 237 827 332 213 1013 433 248 1413 279 399 792 923 475 347 146 185 1054 543 Core . | . . . . . . . . . . . . . . . . . . . . . . . . . . . . . . . . Treads 6192 | . 205 606 722 597 438 595 11 . . 418 3 . . . . . . . . . . . . . 77 475 347 146 185 824 543 Legs 331 | 1 330 . . . . . . . . . . . . . . . . . . . . . . . . . . . . . . Wheels 10511 | . . . . . . . 213 526 221 1314 477 309 189 237 827 332 213 1013 433 248 1413 279 399 792 846 . . . . 230 . Hover . | . . . . . . . . . . . . . . . . . . . . . . . . . . . . . . . . Flight . | . . . . . . . . . . . . . . . . . . . . . . . . . . . . . . . . Fastest Speed 120 | 120 120 240 240 320 320 320 150 150 120 120 145 160 145 160 131 131 131 131 190 190 190 190 190 150 135 240 255 255 240 135 237 Average Speed 206 | 120 233 240 306 320 320 320 154 150 124 171 160 160 145 160 160 131 131 150 190 190 191 190 195 192 180 250 255 255 254 227 246 Slowest Speed 360 | 120 260 240 320 320 320 320 240 150 150 325 240 160 160 160 190 131 131 190 190 190 205 190 205 205 335 255 255 255 255 360 317 Overloaded Moves . | . . . . . . . . . . . . . . . . . . . . . . . . . . . . . . . . Propulsion Burnouts . | . . . . . . . . . . . . . . . . . . . . . . . . . . . . . . . . Robots Hopped . | . . . . . . . . . . . . . . . . . . . . . . . . . . . . . . . . Cave-ins Triggered . | . . . . . . . . . . . . . . . . . . . . . . . . . . . . . . . . Teleports 1 | . . . . . . . . . . . . . . . . . . . . . . . . . . . . . . 1 . Exploration Rate (%) 57 | 2 96 91 63 98 59 91 22 14 92 49 71 44 75 47 24 53 44 88 63 5 90 55 60 68 24 89 88 62 57 30 40 Regions Visited 31 Branch Regions 21 Pre-discovered Areas 14 | . 2 . 1 1 1 . . . . 2 1 . 1 . . . . 1 1 . . . . . . . . 3 . . . Known Exits Taken 23 | . . . . . . 1 1 . . 1 1 1 1 1 1 1 1 1 1 1 1 1 1 1 1 1 1 1 1 1 . Unknown Exits Taken 6 | 1 1 1 1 1 1 . . . . . . . . . . . . . . . . . . . . . . . . . . Scrap Searched 38 | . . 1 . 2 . 3 . . . . 3 2 . 4 . 4 3 2 . . 3 1 . 1 . 5 . . 4 . . Spaces Dug 133 | . 19 . 28 . . . . 7 . 6 1 . . . 10 . . . 7 2 . . 2 35 2 . . . . 7 7 Terrain Destroyed 587 | . 29 21 34 . . 24 . 12 100 18 5 . . . 15 7 . . 7 4 17 5 10 90 12 3 2 . 5 36 131 Melee 30 | . . . . . . . . . . 5 1 . . . 10 . . . . . . . . 14 . . . . . . . Projectile 149 | . . . . . . . . . . 8 . . . . 5 . . . . 4 2 . 10 11 12 3 2 . 1 22 69 AOE 408 | . 29 21 34 . . 24 . 12 100 5 4 . . . . 7 . . 7 . 15 5 . 65 . . . . 4 14 62 Terrain Rammed . | . . . . . . . . . . . . . . . . . . . . . . . . . . . . . . . . Walls Destroyed . | . . . . . . . . . . . . . . . . . . . . . . . . . . . . . . . . Machines Disabled . | . . . . . . . . . . . . . . . . . . . . . . . . . . . . . . . . Actions | -11 -10 -10 -9 -9 -9 -8 -8 -7 -7 -7 -7 -7 -7 -6 -6 -6 -6 -6 -5 -5 -5 -5 -5 -4 -4 -4 -4 -4 -3 -3 -3 --------- Run | Jun Mat Min Mat Min Exi Min Mat Fac Was Fac Low Low Dat Pro Fac Low Low Zio Pro Fac Upp Upp War Pro Fac Upp Upp Zhi Pro Res Arm Total 20803 | . 624 625 951 615 468 677 306 658 277 2141 500 319 205 284 1129 345 221 1046 468 269 1673 298 496 968 1268 607 469 164 295 1432 1005 Wait 1793 | . 24 5 59 1 9 9 13 21 21 179 1 5 . 37 200 10 . 7 14 11 194 . 64 122 128 111 112 . 68 176 192 Move 17004 | . 534 605 721 596 437 594 223 526 220 1731 479 308 188 236 826 331 212 1012 432 247 1412 278 398 791 922 474 346 145 184 1053 543 Hop . | . . . . . . . . . . . . . . . . . . . . . . . . . . . . . . . . Pick Up 220 | . 15 5 19 2 8 8 10 22 5 17 4 1 7 2 6 2 4 . 1 2 5 . 5 4 21 4 2 1 2 13 23 Fast Attach 144 | . 1 . 5 . 2 2 4 8 2 15 2 . . 1 14 . 1 7 . . 6 2 5 1 17 1 . 6 6 21 15 Attach 149 | . 2 2 9 1 . 6 4 5 2 13 3 1 3 1 10 . 1 1 . 3 6 . 1 5 23 3 2 2 1 21 18 Detach 44 | . . . . . . . . 2 . 4 1 . . . 7 . . 3 . . 3 1 . . 9 1 . 4 4 1 4 Swap 134 | . 3 1 11 . . 2 1 2 4 18 4 1 . 1 4 1 1 8 8 . 14 . 2 4 12 5 1 2 5 13 6 Drop 209 | . 6 . 14 2 12 3 6 26 8 20 2 . 7 2 12 . 2 7 2 1 7 1 11 1 15 1 3 4 6 15 13 Fire 918 | . 39 5 79 8 . 47 45 30 15 118 2 3 . 4 33 1 . . 11 5 26 16 10 17 98 7 3 . 19 110 167 Melee 114 | . . . 32 . . . . . . 16 2 . . . 17 . . 1 . . . . . 23 23 . . . . . . Ram 1 | . . . . . . . . . . 1 . . . . . . . . . . . . . . . . . . . . . Kick . | . . . . . . . . . . . . . . . . . . . . . . . . . . . . . . . . Crush 17 | . . 2 2 5 . 6 . . . 1 . . . . . . . . . . . . . . . . . . . 1 . Escape Stasis 32 | . . . . . . . . 16 . 8 . . . . . . . . . . . . . . . . . . . 8 . Rewire 24 | . . . . . . . . . . . . . . . . . . . . . . . . . . . . . . . 24 Trap . | . . . . . . . . . . . . . . . . . . . . . . . . . . . . . . . . Miscellaneous . | . . . . . . . . . . . . . . . . . . . . . . . . . . . . . . . . Route ------- -11/Junkyard -10/Materials (discovered 5 exits: *Mat x3 / *Min x2) -10/Mines (discovered 2 exits: *Mat x2) -9/Materials (discovered 5 exits: *Mat x3 / [*Min] / Sto) -9/Mines (discovered 3 exits: *Mat x2 / *Exi) -9/Exiles -8/Mines (discovered 2 exits: *Mat x2) -8/Materials (discovered 2 exits: *Fac x2) -7/Factory -7/Waste -7/Factory (discovered 5 exits: *Fac x4 / *Low) -7/Lower Caves -7/Lower Caves (discovered 2 exits: Fac / *Dat) -7/Data Miner -6/Proximity Caves -6/Factory (discovered 5 exits: *Fac / *Low x2 / Ext x2) -6/Lower Caves -6/Lower Caves -6/Zion -5/Proximity Caves -5/Factory (discovered 2 exits: Fac / *Upp) -5/Upper Caves -5/Upper Caves (discovered 2 exits: *Fac / *War) -5/Warlord -4/Proximity Caves -4/Factory -4/Upper Caves -4/Upper Caves (discovered 2 exits: *Res / *Zhi) -4/Zhirov -3/Proximity Caves -3/Research -3/Armory History --------- Turn | Location | Event 1 | -11/Junkyard | Discovered new exit (range 0) 1 | -11/Junkyard | Entered Materials 25 | -10/Materials | Discovered new exit (range 6) 33 | -10/Materials | Central database locked down 295 | -10/Materials | Discovered new exit (range 5) 317 | -10/Materials | Build established: Mutant 661 | -10/Materials | Discovered new exit (range 8) 928 | -10/Materials | Discovered new exit (range 16) 1117 | -10/Materials | Discovered new exit (range 7) 1410 | -10/Materials | Entered Mines 1413 | -10/Mines | Received a Mining Laser from a helpful Derelict 1416 | -10/Mines | Assembled infested the area 1421 | -10/Mines | Assisted by a Guerilla fighting off Assembled 1799 | -10/Mines | Learned 8 Materials zone layouts 1897 | -10/Mines | Discovered new exit (range 7) 1929 | -10/Mines | Met a Derelict who couldn't figure out how to use a Trap Extractor 2353 | -10/Mines | Found a hidden stash of uninstalled traps 2468 | -10/Mines | Discovered new exit (range 12) 2893 | -10/Mines | Entered Materials 2893 | -9/Materials | Evolved 2 slots: Utility x2 2894 | -9/Materials | Identified exit to Materials 2894 | -9/Materials | Identified exit to Storage 4131 | -9/Materials | Discovered exit to Materials (range 9) 4803 | -9/Materials | Discovered new exit (range 9) 5532 | -9/Materials | Entered Mines 5622 | -9/Mines | Assisted by bots powering up and referring to "LRC-V3" 5797 | -9/Mines | Deemed a non-threat by the Exiles lab entrance 5811 | -9/Mines | Build established: Scavenger-Mutant 5915 | -9/Mines | Learned 4 Materials zone layouts 6706 | -9/Mines | Discovered exit to Materials (range 13) 7032 | -9/Mines | Discovered exit to Materials (range 9) 7468 | -9/Mines | Discovered new exit (range 5) 7485 | -9/Mines | Entered Exiles 7485 | -9/Exiles | Accompanied by 2 allies 7565 | -9/Exiles | Met 8R-AWN 7621 | -9/Exiles | Met EX-HEX 7762 | -9/Exiles | Met EX-DEC 7816 | -9/Exiles | Learned location of Zion (-6) 7853 | -9/Exiles | Build established: Mutant 7966 | -9/Exiles | Discovered new exit (range 10) 8910 | -9/Exiles | Entered Mines 8910 | -8/Mines | Accompanied by 2 allies 9360 | -8/Mines | Core integrity fell below 50% 9426 | -8/Mines | Lost 6 parts (1p2n1u2w) 10250 | -8/Mines | Discovered exit to Materials (range 6) 10321 | -8/Mines | Discovered exit to Materials (range 8) 10996 | -8/Mines | Entered Materials 10996 | -8/Materials | Evolved 2 slots: Propulsion x2 10997 | -8/Materials | Identified exit to Factory 11405 | -8/Materials | Garrison activated, responded to threat 11444 | -8/Materials | Discovered exit to Factory (range 16) 11513 | -8/Materials | Entered Factory 11513 | -7/Factory | Evolved 2 slots: Utility x2 12024 | -7/Factory | Discovered new exit (range 12) 12058 | -7/Factory | Identified exit to Factory 12201 | -7/Factory | Build established: Scavenger-Mutant 12350 | -7/Factory | Found Prototype Launcher 12350 | -7/Factory | Identified Rocket Array 12476 | -7/Factory | Sucked down chute 12476 | -7/Factory | Entered Waste 12491 | -7/Waste | EMP discharged 12492 | -7/Waste | Spotted C-40 Crusher 12498 | -7/Waste | Destroyed C-40 Crusher 12521 | -7/Waste | Spotted C-40 Crusher 12529 | -7/Waste | Destroyed C-40 Crusher 12532 | -7/Waste | Spotted C-40 Crusher 12534 | -7/Waste | Destroyed C-40 Crusher 12539 | -7/Waste | Spotted C-40 Crusher 12542 | -7/Waste | Spotted C-40 Crusher 12542 | -7/Waste | Destroyed C-40 Crusher 12545 | -7/Waste | Destroyed C-40 Crusher 12591 | -7/Waste | EMP discharged 12591 | -7/Waste | System corruption reached 10% 12608 | -7/Waste | Spotted C-40 Crusher 12644 | -7/Waste | Destroyed C-40 Crusher 12691 | -7/Waste | EMP discharged 12791 | -7/Waste | EMP discharged 12791 | -7/Waste | Discovered new exit (range 13) 12833 | -7/Waste | Identified exit to Factory 12835 | -7/Waste | Entered Factory 12859 | -7/Factory | Build established: Mutant 13223 | -7/Factory | Build established: Scavenger-Mutant 13343 | -7/Factory | Discovered exit to Factory (range 8) 13667 | -7/Factory | Allied Derelicts emerged from ambush trap array 14037 | -7/Factory | Build established: Hacker-Mutant 14574 | -7/Factory | Discovered exit to Factory (range 15) 15987 | -7/Factory | Discovered new exit (range 10) 15999 | -7/Factory | Build established: Scavenger-Mutant 16006 | -7/Factory | Identified exit to Lower Caves 16435 | -7/Factory | First assault squad dispatched 16460 | -7/Factory | Entered Lower Caves 16587 | -7/Lower Caves | Spotted B-75 Beast 16690 | -7/Lower Caves | Found Alien Artifact 16690 | -7/Lower Caves | Identified Core Expander 16690 | -7/Lower Caves | Installed Core Expander, added new Weapon slot 16790 | -7/Lower Caves | Learned Factory terminal intel 16970 | -7/Lower Caves | Encountered a Warlord checkpoint 17220 | -7/Lower Caves | Discovered new exit (range 10) 17255 | -7/Lower Caves | Identified exit to Lower Caves 17257 | -7/Lower Caves | Entered another Lower Caves area 17257 | -7/Lower Caves | Discovered exit to Factory (range 14) 17635 | -7/Lower Caves | Encountered a Warlord checkpoint 17655 | -7/Lower Caves | Build established: Scavenger-Tank 17759 | -7/Lower Caves | Discovered new exit (range 6) 17767 | -7/Lower Caves | Identified exit to Data Miner 17769 | -7/Lower Caves | Entered Data Miner 17771 | -7/Data Miner | Discovered new exit (range 6) 17799 | -7/Data Miner | Met Data Miner 17825 | -7/Data Miner | Learned location of Section 7 (-2) 17825 | -7/Data Miner | Acquired the access code to Warlord's prototype stash 17851 | -7/Data Miner | Received God Mode back door access code from Data Miner 18055 | -7/Data Miner | Identified exit to Proximity Caves 18057 | -7/Data Miner | Entered Proximity Caves 18248 | -6/Proximity Caves | Spotter reported a threat 18310 | -6/Proximity Caves | Spotter reported a threat 18369 | -6/Proximity Caves | Spotter reported a threat 18423 | -6/Proximity Caves | Discovered exit to Factory (range 15) 18464 | -6/Proximity Caves | Escorted by Enhanced Grunt 18492 | -6/Proximity Caves | Entered Factory 18492 | -6/Factory | Accompanied by 1 ally 18492 | -6/Factory | Evolved 2 slots: Utility x2 18493 | -6/Factory | Loaded intel: 27 terminal locations 18842 | -6/Factory | Search patrols dispatched 18875 | -6/Factory | Build established: Scavenger-Mutant 19004 | -6/Factory | Discovered new exit (range 16) 19027 | -6/Factory | Identified exit to Factory 19866 | -6/Factory | Fabricated L-41 Fighter (x3) 19918 | -6/Factory | Fabricated Cargo Storage Unit (x1) 19936 | -6/Factory | Incoming investigation squad redirected 20029 | -6/Factory | Identified exit to Lower Caves 20029 | -6/Factory | Identified exit to Extension 20211 | -6/Factory | Build established: Hauler-Mutant 20221 | -6/Factory | Entered Lower Caves 20221 | -6/Lower Caves | Accompanied by 1 ally 20497 | -6/Lower Caves | Spotted B-75 Beast 20621 | -6/Lower Caves | Discovered new exit (range 3) 20625 | -6/Lower Caves | Identified exit to Lower Caves 20659 | -6/Lower Caves | Learned Factory emergency access door positions 20671 | -6/Lower Caves | Entered another Lower Caves area 20671 | -6/Lower Caves | Accompanied by 1 ally 20856 | -6/Lower Caves | Encountered a Warlord checkpoint 20898 | -6/Lower Caves | Learned 12 Factory zone layouts 20946 | -6/Lower Caves | Discovered new exit (range 10) 20957 | -6/Lower Caves | Identified exit to Zion 20958 | -6/Lower Caves | Entered Zion 20958 | -6/Zion | Accompanied by 1 ally 21005 | -6/Zion | System corruption cleaned by Quarantine Array 21109 | -6/Zion | Found CR-A16's Pointy Stick 21164 | -6/Zion | Discovered new exit (range 14) 21274 | -6/Zion | Learned 8 Factory zone layouts 22122 | -6/Zion | Imprinted 22124 | -6/Zion | Declared Zion's savior 22469 | -6/Zion | Visited the Megawrench Repair Shop 22470 | -6/Zion | Megawrench repaired 13 parts 22519 | -6/Zion | Identified exit to Proximity Caves 22523 | -6/Zion | Entered Proximity Caves 22523 | -5/Proximity Caves | Accompanied by 5 allies 22936 | -5/Proximity Caves | Learned 4 Factory zone layouts 23052 | -5/Proximity Caves | Spotted B-75 Beast 23072 | -5/Proximity Caves | Allies destroyed B-75 Beast 23358 | -5/Proximity Caves | Discovered exit to Factory (range 13) 23401 | -5/Proximity Caves | Entered Factory 23401 | -5/Factory | Accompanied by 2 allies 23401 | -5/Factory | Evolved 2 slots: Power x1, Utility x1 23402 | -5/Factory | Identified exit to Upper Caves 23402 | -5/Factory | Identified exit to Factory 23442 | -5/Factory | Build established: Hauler-Skirmisher 23572 | -5/Factory | Zion Recon squad teleported in 23699 | -5/Factory | Zion Light squad teleported in 23902 | -5/Factory | Entered Upper Caves 23902 | -5/Upper Caves | Accompanied by 4 allies 24233 | -5/Upper Caves | Build established: Hauler-Tank 24243 | -5/Upper Caves | Learned Factory emergency access door positions 24247 | -5/Upper Caves | Attracted the attention of an 0b10 checkpoint 24787 | -5/Upper Caves | Spotted B-75 Beast 24919 | -5/Upper Caves | Build established: Hauler-Skirmisher 25947 | -5/Upper Caves | Encountered a Warlord checkpoint 26858 | -5/Upper Caves | Discovered new exit (range 15) 26894 | -5/Upper Caves | Identified exit to Upper Caves 26915 | -5/Upper Caves | Entered another Upper Caves area 26941 | -5/Upper Caves | Attacked by a faux Warlord 26996 | -5/Upper Caves | Discovered exit to Factory (range 14) 27132 | -5/Upper Caves | Encountered a Warlord checkpoint 27137 | -5/Upper Caves | Build established: Hauler-Mutant 27460 | -5/Upper Caves | Discovered new exit (range 15) 27485 | -5/Upper Caves | Identified exit to Warlord 27487 | -5/Upper Caves | Entered Warlord 27535 | -5/Warlord | Discovered new exit (range 15) 27886 | -5/Warlord | Rebuked by Warlord 27905 | -5/Warlord | Opened Warlord's prototype stash 27911 | -5/Warlord | Warlord's base attacked by MAIN.C 27916 | -5/Warlord | Found Prototype Reactor 27916 | -5/Warlord | Identified Vortex Chain Reactor 27922 | -5/Warlord | Found Prototype Device 27922 | -5/Warlord | Identified Exp. Phase Shifter 27946 | -5/Warlord | Found Prototype Device 27946 | -5/Warlord | Identified System Purifier 27951 | -5/Warlord | Found Prototype Processor 27956 | -5/Warlord | Found Prototype Hackware 28206 | -5/Warlord | Build established: Hauler-Tank 28223 | -5/Warlord | Opened side exit 28261 | -5/Warlord | Warlord forces counterattacked 28348 | -5/Warlord | Spotted Striker 28351 | -5/Warlord | Spotted Striker 28353 | -5/Warlord | Spotted Striker 28373 | -5/Warlord | Identified exit to Proximity Caves 28375 | -5/Warlord | Entered Proximity Caves 28384 | -4/Proximity Caves | Identified Spectral Analyzer 28690 | -4/Proximity Caves | Build established: Hauler-Skirmisher 29026 | -4/Proximity Caves | Encountered a Derelict sapper outpost 29398 | -4/Proximity Caves | Build established: Hauler-Assassin 29758 | -4/Proximity Caves | Attracted the attention of an 0b10 checkpoint 30106 | -4/Proximity Caves | Discovered exit to Factory (range 11) 30147 | -4/Proximity Caves | Entered Factory 30147 | -4/Factory | Evolved 2 slots: Utility x2 30237 | -4/Factory | Identified System Mapper 30428 | -4/Factory | Repaired Arm. Huge Wheel 30444 | -4/Factory | Found Unknown Device 30444 | -4/Factory | Identified Quantum Capacitor 31034 | -4/Factory | Lost 3 parts (1n2w) 31180 | -4/Factory | Lost 4 parts (1p1n1u1w) 31277 | -4/Factory | Core integrity fell below 50% 31304 | -4/Factory | Build established: Hauler-Mutant 31326 | -4/Factory | Lost 4 parts (1p2n1w) 31404 | -4/Factory | Terminal network hard line cut 31539 | -4/Factory | System corruption reached 10% 31562 | -4/Factory | Lost 4 parts (1p2n1w) 31913 | -4/Factory | Discovered new exit (range 23) 31932 | -4/Factory | Build established: Scavenger-Mutant 31986 | -4/Factory | Identified exit to Upper Caves 32095 | -4/Factory | Fabricated Lgt. Regenerative Plating (x1) 32181 | -4/Factory | Fabricated H-66 Slayer (x2) 32282 | -4/Factory | Entered Upper Caves 32282 | -4/Upper Caves | Accompanied by 2 allies 32367 | -4/Upper Caves | Build established: Hauler-Mutant 32548 | -4/Upper Caves | Encountered a Warlord checkpoint 32908 | -4/Upper Caves | Identified exit to Upper Caves 32994 | -4/Upper Caves | Found Alien Artifact 33120 | -4/Upper Caves | Learned Research security intel 33618 | -4/Upper Caves | Entered another Upper Caves area 33618 | -4/Upper Caves | Accompanied by 2 allies 33746 | -4/Upper Caves | Discovered new exit (range 35) 33856 | -4/Upper Caves | Discovered new exit (range 112) 34064 | -4/Upper Caves | Build established: Hauler-Gunner 34625 | -4/Upper Caves | Identified exit to Zhirov 34628 | -4/Upper Caves | Entered Zhirov 34628 | -4/Zhirov | Accompanied by 1 ally 34630 | -4/Zhirov | Discovered new exit (range 3) 34676 | -4/Zhirov | Met Zhirov 34727 | -4/Zhirov | Learned location of Quarantine (-3) 34727 | -4/Zhirov | Learned location of Testing (-2) 34750 | -4/Zhirov | Zhirov requested help retrieving the SGEMP Prototype 34796 | -4/Zhirov | Found Alien Artifact 34796 | -4/Zhirov | Identified Integrated Dissipator 34796 | -4/Zhirov | Installed Integrated Dissipator, increased core heat dissipation (+20) 34833 | -4/Zhirov | Found Alien Artifact 34930 | -4/Zhirov | Build established: Hauler-Mutant 35013 | -4/Zhirov | Identified exit to Proximity Caves 35017 | -4/Zhirov | Entered Proximity Caves 35017 | -3/Proximity Caves | Accompanied by 1 ally 35311 | -3/Proximity Caves | Build established: Hauler-Skirmisher 35420 | -3/Proximity Caves | Attracted the attention of an 0b10 checkpoint 35580 | -3/Proximity Caves | Discovered new exit (range 9) 35604 | -3/Proximity Caves | Core integrity fell below 20% 35616 | -3/Proximity Caves | Identified exit to Research 35631 | -3/Proximity Caves | Entered Research 35631 | -3/Research | Evolved 2 slots: Propulsion x1, Utility x1 35749 | -3/Research | Spotted B-86 Titan 35764 | -3/Research | Build established: Hauler-Tank 35927 | -3/Research | Retrieved Zion intel report: Prototype Stockpiles 36272 | -3/Research | Identified exit to DSF 36704 | -3/Research | Build established: Hauler-Gunner 37035 | -3/Research | Terminal network hard line cut 37048 | -3/Research | Lost 4 parts (2p2n) 37383 | -3/Research | Found Prototype Device 37700 | -3/Research | Lost 5 parts (2p1u2w) 37796 | -3/Research | Identified Transdimensional Reconstructor 37796 | -3/Research | Warped through subspace 37864 | -3/Research | Identified Adv. Kinecellerator 38002 | -3/Research | Build established: Hauler-Mutant 38382 | -3/Research | Local machine network offline 38407 | -3/Research | First assault squad dispatched 38428 | -3/Research | Discovered new exit (range 52) 38431 | -3/Research | Incoming assault squad redirected 38617 | -3/Research | Identified exit to Armory 38620 | -3/Research | Entered Armory 38997 | -3/Armory | System corruption reached 10% 39052 | -3/Armory | Lost 6 parts (2p1n2u1w) 39068 | -3/Armory | Zion Hacker squad teleported in 39431 | -3/Armory | Build established: Hauler-Skirmisher 39888 | -3/Armory | P-80 Master assimilated allied Archangel 8a 40024 | -3/Armory | Build established: Hauler-Mutant 40141 | -3/Armory | Terminal network hard line cut 40157 | -3/Armory | P-80 Master assimilated allied Archangel 8b 40297 | -3/Armory | Lost 3 parts (1n2u) 40344 | -3/Armory | System corruption reached 30% 40370 | -3/Armory | First assault squad dispatched 40400 | -3/Armory | Incoming assault squad redirected 40679 | -3/Armory | Self-destructed Last Messages --------------- 40642_ Unknown Protection melted. 40646_ =WJJCMGPMR